Workbook

Sheet Instructions
B2: Instructions
B5: Use the different steps to calculate each individual indexes. In each tab, enter the data needed in the gray text areas. Specific instructions may be added in some tabs. If you want to assess a forensic chemical technique, please use the ForATE Chemical Index Calculator file.
B15: File legend
A17: Color of the areas to fill : | F17: Specific instructions :
A21: Buttons for specials actions : | F21: Navigation arrows :

Sheet Step1
A2: Efficiency index | C2: = | D2: =IFERROR(10^ABS(3*(((N9/(E4*M9))+N14)/2)),"Waiting for data") -> Waiting for data | F2: =LOG(D2) -> 
A4: Number of marks/stains planted for each sample | E4: Enter data
A6: Number of samples | E6: Enter data
B8: Technique used | C8: Nb of fingermarks found | D8: xy | E8: s2x calc | F8: s2y calc | M8: Somme X | N8: Somme y
B9: 0 | C9: 0 | D9: =B9*C9 -> 0 | E9: =(B9-$M$11)*(B9-$M$11) -> 0 | F9: =(C9-$N$11)*(C9-$N$11) -> 0 | M9: =SUM(B9:B2604) -> 0 | N9: =SUM(C9:C2604) -> 0
B10: 0 | C10: 0 | D10: =B10*C10 -> 0 | E10: =(B10-$M$11)*(B10-$M$11) -> 0 | F10: =(C10-$N$11)*(C10-$N$11) -> 0 | M10: Moyenne X | N10: Moyenne Y
B11: 0 | C11: 0 | D11: =B11*C11 -> 0 | E11: =(B11-$M$11)*(B11-$M$11) -> 0 | F11: =(C11-$N$11)*(C11-$N$11) -> 0 | M11: =AVERAGE(B9:B2604) -> 0 | N11: =AVERAGE(C9:C2604) -> 0
B12: 0 | C12: 0 | D12: =B12*C12 -> 0 | E12: =(B12-$M$11)*(B12-$M$11) -> 0 | F12: 0
B13: 0 | C13: 0 | D13: 0 | E13: 0 | F13: 0 | M13: Sxy | N13: r
B14: 0 | C14: 0 | D14: 0 | E14: 0 | F14: 0 | M14: =((2595*M17)-(M9*N9))/(2595*(2595-1)) -> 0 | N14: =M14/(SQRT(N17)*SQRT(O17)) -> 
B15: 0 | C15: 0 | D15: 0 | E15: 0 | F15: 0
B16: 0 | C16: 0 | D16: 0 | E16: 0 | F16: 0 | M16: Total xy | N16: Total s2x | O16: Total s2y
B17: 0 | C17: 0 | D17: 0 | E17: 0 | F17: 0 | M17: =SUM(D9:D2604) -> 0 | N17: =SUM(E9:E2604)/(2595-1) -> 0 | O17: =SUM(F9:F2604)/(2595-1) -> 0
B18: 0 | C18: 0 | D18: 0 | E18: 0 | F18: 0
B19: 0 | C19: 0 | D19: 0 | E19: 0 | F19: 0 | M19: Nombre d'échantillon total
B20: 0 | C20: 0 | D20: 0 | E20: 0 | F20: 0 | M20: =2602-7 -> 2595
B21: 0 | C21: 0 | D21: 0 | E21: 0 | F21: 0
B22: 0 | C22: 0 | D22: 0 | E22: 0 | F22: 0
B23: 0 | C23: 0 | D23: 0 | E23: 0 | F23: 0 | N23: =N9/(E4*M9) ->  | O23: =N23*N14 ->  | P23: =O23*3 ->  | Q23: =10^P23 -> 
B24: 0 | C24: 0 | D24: 0 | E24: 0 | F24: 0
B25: 0 | C25: 0 | D25: 0 | E25: 0 | F25: 0
B26: 0 | C26: 0 | D26: 0 | E26: 0 | F26: 0
B27: 0 | C27: 0 | D27: 0 | E27: 0 | F27: 0
B28: 0 | C28: 0 | D28: 0 | E28: 0 | F28: 0
B29: 0 | C29: 0 | D29: 0 | E29: 0 | F29: 0
B30: 0 | C30: 0 | D30: 0 | E30: 0 | F30: 0
B31: 0 | C31: 0 | D31: 0 | E31: 0 | F31: 0
B32: 0 | C32: 0 | D32: 0 | E32: 0 | F32: 0
B33: 0 | C33: 0 | D33: 0 | E33: 0 | F33: 0
B34: 0 | C34: 0 | D34: 0 | E34: 0 | F34: 0
B35: 0 | C35: 0 | D35: 0 | E35: 0 | F35: 0
B36: 0 | C36: 0 | D36: 0 | E36: 0 | F36: 0
B37: 0 | C37: 0 | D37: 0 | E37: 0 | F37: 0
B38: 0 | C38: 0 | D38: 0 | E38: 0 | F38: 0
B39: 0 | C39: 0 | D39: 0 | E39: 0 | F39: 0
B40: 0 | C40: 0 | D40: 0 | E40: 0 | F40: 0
B41: 0 | C41: 0 | D41: 0 | E41: 0 | F41: 0
B42: 0 | C42: 0 | D42: 0 | E42: 0 | F42: 0
B43: 0 | C43: 0 | D43: 0 | E43: 0 | F43: 0
B44: 0 | C44: 0 | D44: 0 | E44: 0 | F44: 0
B45: 0 | C45: 0 | D45: 0 | E45: 0 | F45: 0
B46: 0 | C46: 0 | D46: 0 | E46: 0 | F46: 0
B47: 0 | C47: 0 | D47: 0 | E47: 0 | F47: 0
B48: 0 | C48: 0 | D48: 0 | E48: 0 | F48: 0
B49: 0 | C49: 0 | D49: 0 | E49: 0 | F49: 0
B50: 0 | C50: 0 | D50: 0 | E50: 0 | F50: 0
B51: 0 | C51: 0 | D51: 0 | E51: 0 | F51: 0
B52: 0 | C52: 0 | D52: 0 | E52: 0 | F52: 0
B53: 0 | C53: 0 | D53: 0 | E53: 0 | F53: 0
B54: 0 | C54: 0 | D54: 0 | E54: 0 | F54: 0
B55: 0 | C55: 0 | D55: 0 | E55: 0 | F55: 0
B56: 0 | C56: 0 | D56: 0 | E56: 0 | F56: 0
B57: 0 | C57: 0 | D57: 0 | E57: 0 | F57: 0
B58: 0 | C58: 0 | D58: 0 | E58: 0 | F58: 0
B59: 0 | C59: 0 | D59: 0 | E59: 0 | F59: 0
B60: 0 | C60: 0 | D60: 0 | E60: 0 | F60: 0
B61: 0 | C61: 0 | D61: 0 | E61: 0 | F61: 0
B62: 0 | C62: 0 | D62: 0 | E62: 0 | F62: 0
B63: 0 | C63: 0 | D63: 0 | E63: 0 | F63: 0
B64: 0 | C64: 0 | D64: 0 | E64: 0 | F64: 0
B65: 0 | C65: 0 | D65: 0 | E65: 0 | F65: 0
B66: 0 | C66: 0 | D66: 0 | E66: 0 | F66: 0
B67: 0 | C67: 0 | D67: 0 | E67: 0 | F67: 0
B68: 0 | C68: 0 | D68: 0 | E68: 0 | F68: 0
B69: 0 | C69: 0 | D69: 0 | E69: 0 | F69: 0
B70: 0 | C70: 0 | D70: 0 | E70: 0 | F70: 0
B71: 0 | C71: 0 | D71: 0 | E71: 0 | F71: 0
B72: 0 | C72: 0 | D72: 0 | E72: 0 | F72: 0
B73: 0 | C73: 0 | D73: 0 | E73: 0 | F73: 0
B74: 0 | C74: 0 | D74: 0 | E74: 0 | F74: 0
B75: 0 | C75: 0 | D75: 0 | E75: 0 | F75: =(C75-$N$11)*(C75-$N$11) -> 0
B76: 0 | C76: 0 | D76: =B76*C76 -> 0 | E76: =(B76-$M$11)*(B76-$M$11) -> 0 | F76: 0
B77: 0 | C77: 0 | D77: 0 | E77: 0 | F77: 0
B78: 0 | C78: 0 | D78: 0 | E78: 0 | F78: 0
B79: 0 | C79: 0 | D79: 0 | E79: 0 | F79: 0
B80: 0 | C80: 0 | D80: 0 | E80: 0 | F80: 0
B81: 0 | C81: 0 | D81: 0 | E81: 0 | F81: 0
B82: 0 | C82: 0 | D82: 0 | E82: 0 | F82: 0
B83: 0 | C83: 0 | D83: 0 | E83: 0 | F83: 0
B84: 0 | C84: 0 | D84: 0 | E84: 0 | F84: 0
B85: 0 | C85: 0 | D85: 0 | E85: 0 | F85: 0
B86: 0 | C86: 0 | D86: 0 | E86: 0 | F86: 0
B87: 0 | C87: 0 | D87: 0 | E87: 0 | F87: 0
B88: 0 | C88: 0 | D88: 0 | E88: 0 | F88: 0
B89: 0 | C89: 0 | D89: 0 | E89: 0 | F89: 0
B90: 0 | C90: 0 | D90: 0 | E90: 0 | F90: 0
B91: 0 | C91: 0 | D91: 0 | E91: 0 | F91: 0
B92: 0 | C92: 0 | D92: 0 | E92: 0 | F92: 0
B93: 0 | C93: 0 | D93: 0 | E93: 0 | F93: 0
B94: 0 | C94: 0 | D94: 0 | E94: 0 | F94: 0
B95: 0 | C95: 0 | D95: 0 | E95: 0 | F95: 0
B96: 0 | C96: 0 | D96: 0 | E96: 0 | F96: 0
B97: 0 | C97: 0 | D97: 0 | E97: 0 | F97: 0
B98: 0 | C98: 0 | D98: 0 | E98: 0 | F98: 0
B99: 0 | C99: 0 | D99: 0 | E99: 0 | F99: 0
B100: 0 | C100: 0 | D100: 0 | E100: 0 | F100: 0
B101: 0 | C101: 0 | D101: 0 | E101: 0 | F101: 0
B102: 0 | C102: 0 | D102: 0 | E102: 0 | F102: 0
B103: 0 | C103: 0 | D103: 0 | E103: 0 | F103: 0
B104: 0 | C104: 0 | D104: 0 | E104: 0 | F104: 0
B105: 0 | C105: 0 | D105: 0 | E105: 0 | F105: 0
B106: 0 | C106: 0 | D106: 0 | E106: 0 | F106: 0
B107: 0 | C107: 0 | D107: 0 | E107: 0 | F107: 0
B108: 0 | C108: 0 | D108: 0 | E108: 0 | F108: 0
B109: 0 | C109: 0 | D109: 0 | E109: 0 | F109: 0
B110: 0 | C110: 0 | D110: 0 | E110: 0 | F110: 0
B111: 0 | C111: 0 | D111: 0 | E111: 0 | F111: 0
B112: 0 | C112: 0 | D112: 0 | E112: 0 | F112: 0
B113: 0 | C113: 0 | D113: 0 | E113: 0 | F113: 0
B114: 0 | C114: 0 | D114: 0 | E114: 0 | F114: 0
B115: 0 | C115: 0 | D115: 0 | E115: 0 | F115: 0
B116: 0 | C116: 0 | D116: 0 | E116: 0 | F116: 0
B117: 0 | C117: 0 | D117: 0 | E117: 0 | F117: 0
B118: 0 | C118: 0 | D118: 0 | E118: 0 | F118: 0
B119: 0 | C119: 0 | D119: 0 | E119: 0 | F119: 0
B120: 0 | C120: 0 | D120: 0 | E120: 0 | F120: 0
B121: 0 | C121: 0 | D121: 0 | E121: 0 | F121: 0
B122: 0 | C122: 0 | D122: 0 | E122: 0 | F122: 0
B123: 0 | C123: 0 | D123: 0 | E123: 0 | F123: 0
B124: 0 | C124: 0 | D124: 0 | E124: 0 | F124: 0
B125: 0 | C125: 0 | D125: 0 | E125: 0 | F125: 0
B126: 0 | C126: 0 | D126: 0 | E126: 0 | F126: 0
B127: 0 | C127: 0 | D127: 0 | E127: 0 | F127: 0
B128: 0 | C128: 0 | D128: 0 | E128: 0 | F128: 0
B129: 0 | C129: 0 | D129: 0 | E129: 0 | F129: 0
B130: 0 | C130: 0 | D130: 0 | E130: 0 | F130: 0
B131: 0 | C131: 0 | D131: 0 | E131: 0 | F131: 0
B132: 0 | C132: 0 | D132: 0 | E132: 0 | F132: 0
B133: 0 | C133: 0 | D133: 0 | E133: 0 | F133: 0
B134: 0 | C134: 0 | D134: 0 | E134: 0 | F134: 0
B135: 0 | C135: 0 | D135: 0 | E135: 0 | F135: 0
B136: 0 | C136: 0 | D136: 0 | E136: 0 | F136: 0
B137: 0 | C137: 0 | D137: 0 | E137: 0 | F137: 0
B138: 0 | C138: 0 | D138: 0 | E138: 0 | F138: 0
B139: 0 | C139: 0 | D139: 0 | E139: 0 | F139: =(C139-$N$11)*(C139-$N$11) -> 0
B140: 0 | C140: 0 | D140: =B140*C140 -> 0 | E140: =(B140-$M$11)*(B140-$M$11) -> 0 | F140: 0
B141: 0 | C141: 0 | D141: 0 | E141: 0 | F141: 0
B142: 0 | C142: 0 | D142: 0 | E142: 0 | F142: 0
B143: 0 | C143: 0 | D143: 0 | E143: 0 | F143: 0
B144: 0 | C144: 0 | D144: 0 | E144: 0 | F144: 0
B145: 0 | C145: 0 | D145: 0 | E145: 0 | F145: 0
B146: 0 | C146: 0 | D146: 0 | E146: 0 | F146: 0
B147: 0 | C147: 0 | D147: 0 | E147: 0 | F147: 0
B148: 0 | C148: 0 | D148: 0 | E148: 0 | F148: 0
B149: 0 | C149: 0 | D149: 0 | E149: 0 | F149: 0
B150: 0 | C150: 0 | D150: 0 | E150: 0 | F150: 0
B151: 0 | C151: 0 | D151: 0 | E151: 0 | F151: 0
B152: 0 | C152: 0 | D152: 0 | E152: 0 | F152: 0
B153: 0 | C153: 0 | D153: 0 | E153: 0 | F153: 0
B154: 0 | C154: 0 | D154: 0 | E154: 0 | F154: 0
B155: 0 | C155: 0 | D155: 0 | E155: 0 | F155: 0
B156: 0 | C156: 0 | D156: 0 | E156: 0 | F156: 0
B157: 0 | C157: 0 | D157: 0 | E157: 0 | F157: 0
B158: 0 | C158: 0 | D158: 0 | E158: 0 | F158: 0
B159: 0 | C159: 0 | D159: 0 | E159: 0 | F159: 0
B160: 0 | C160: 0 | D160: 0 | E160: 0 | F160: 0
B161: 0 | C161: 0 | D161: 0 | E161: 0 | F161: 0
B162: 0 | C162: 0 | D162: 0 | E162: 0 | F162: 0
B163: 0 | C163: 0 | D163: 0 | E163: 0 | F163: 0
B164: 0 | C164: 0 | D164: 0 | E164: 0 | F164: 0
B165: 0 | C165: 0 | D165: 0 | E165: 0 | F165: 0
B166: 0 | C166: 0 | D166: 0 | E166: 0 | F166: 0
B167: 0 | C167: 0 | D167: 0 | E167: 0 | F167: 0
B168: 0 | C168: 0 | D168: 0 | E168: 0 | F168: 0
B169: 0 | C169: 0 | D169: 0 | E169: 0 | F169: 0
B170: 0 | C170: 0 | D170: 0 | E170: 0 | F170: 0
B171: 0 | C171: 0 | D171: 0 | E171: 0 | F171: 0
B172: 0 | C172: 0 | D172: 0 | E172: 0 | F172: 0
B173: 0 | C173: 0 | D173: 0 | E173: 0 | F173: 0
B174: 0 | C174: 0 | D174: 0 | E174: 0 | F174: 0
B175: 0 | C175: 0 | D175: 0 | E175: 0 | F175: 0
B176: 0 | C176: 0 | D176: 0 | E176: 0 | F176: 0
B177: 0 | C177: 0 | D177: 0 | E177: 0 | F177: 0
B178: 0 | C178: 0 | D178: 0 | E178: 0 | F178: 0
B179: 0 | C179: 0 | D179: 0 | E179: 0 | F179: 0
B180: 0 | C180: 0 | D180: 0 | E180: 0 | F180: 0
B181: 0 | C181: 0 | D181: 0 | E181: 0 | F181: 0
B182: 0 | C182: 0 | D182: 0 | E182: 0 | F182: 0
B183: 0 | C183: 0 | D183: 0 | E183: 0 | F183: 0
B184: 0 | C184: 0 | D184: 0 | E184: 0 | F184: 0
B185: 0 | C185: 0 | D185: 0 | E185: 0 | F185: 0
B186: 0 | C186: 0 | D186: 0 | E186: 0 | F186: 0
B187: 0 | C187: 0 | D187: 0 | E187: 0 | F187: 0
B188: 0 | C188: 0 | D188: 0 | E188: 0 | F188: 0
B189: 0 | C189: 0 | D189: 0 | E189: 0 | F189: 0
B190: 0 | C190: 0 | D190: 0 | E190: 0 | F190: 0
B191: 0 | C191: 0 | D191: 0 | E191: 0 | F191: 0
B192: 0 | C192: 0 | D192: 0 | E192: 0 | F192: 0
B193: 0 | C193: 0 | D193: 0 | E193: 0 | F193: 0
B194: 0 | C194: 0 | D194: 0 | E194: 0 | F194: 0
B195: 0 | C195: 0 | D195: 0 | E195: 0 | F195: 0
B196: 0 | C196: 0 | D196: 0 | E196: 0 | F196: 0
B197: 0 | C197: 0 | D197: 0 | E197: 0 | F197: 0
B198: 0 | C198: 0 | D198: 0 | E198: 0 | F198: 0
B199: 0 | C199: 0 | D199: 0 | E199: 0 | F199: 0
B200: 0 | C200: 0 | D200: 0 | E200: 0 | F200: 0
B201: 0 | C201: 0 | D201: 0 | E201: 0 | F201: 0
B202: 0 | C202: 0 | D202: 0 | E202: 0 | F202: 0
B203: 0 | C203: 0 | D203: 0 | E203: 0 | F203: =(C203-$N$11)*(C203-$N$11) -> 0
B204: 0 | C204: 0 | D204: =B204*C204 -> 0 | E204: =(B204-$M$11)*(B204-$M$11) -> 0 | F204: 0
... 2400 more rows

Sheet Efficiency Meta-analysis (hidden)
A2: Efficiency index | C2: = | D2: =IFERROR(10^ABS(3*N12),0) -> 0 | G2: This tab is available for you to calculate the efficiency index using a meta-analysis of studies found in literature.
A3: Meta-analysis
A6: Study Identification | B6: Population size (N) | C6: Effect (r) | D6: Nr | M6: Total N | N6: Total r
A7: - | B7: 0 | C7: 0 | D7: =B7*C7 -> 0 | G7: You should calculate effect size r for each study using Pearson Correlation. Enter in the table the Effect (r) and population size (N) of each study. | M7: =SUM(B7:B2602) -> 0 | N7: =SUM(C7:C2602) -> 0
A8: - | B8: 0 | C8: 0 | D8: =B8*C8 -> 0
A9: - | B9: 0 | C9: 0 | D9: =B9*C9 -> 0
B10: 0 | C10: 0 | D10: =B10*C10 -> 0
B11: 0 | C11: 0 | D11: 0 | N11: r
B12: 0 | C12: 0 | D12: 0 | N12: =M15/M7 -> 
B13: 0 | C13: 0 | D13: 0
B14: 0 | C14: 0 | D14: 0 | M14: Total Nr
B15: 0 | C15: 0 | D15: 0 | M15: =SUM(D7:D2602) -> 0
B16: 0 | C16: 0 | D16: 0
B17: 0 | C17: 0 | D17: 0
B18: 0 | C18: 0 | D18: 0
B19: 0 | C19: 0 | D19: 0
B20: 0 | C20: 0 | D20: 0
B21: 0 | C21: 0 | D21: 0
B22: 0 | C22: 0 | D22: 0
B23: 0 | C23: 0 | D23: 0
B24: 0 | C24: 0 | D24: 0
B25: 0 | C25: 0 | D25: 0
B26: 0 | C26: 0 | D26: 0
B27: 0 | C27: 0 | D27: 0
B28: 0 | C28: 0 | D28: 0
B29: 0 | C29: 0 | D29: 0
B30: 0 | C30: 0 | D30: 0
B31: 0 | C31: 0 | D31: 0
B32: 0 | C32: 0 | D32: 0
B33: 0 | C33: 0 | D33: 0
B34: 0 | C34: 0 | D34: 0
B35: 0 | C35: 0 | D35: 0
B36: 0 | C36: 0 | D36: 0
B37: 0 | C37: 0 | D37: 0
B38: 0 | C38: 0 | D38: 0
B39: 0 | C39: 0 | D39: 0
B40: 0 | C40: 0 | D40: 0
B41: 0 | C41: 0 | D41: 0
B42: 0 | C42: 0 | D42: 0
B43: 0 | C43: 0 | D43: 0
B44: 0 | C44: 0 | D44: 0
B45: 0 | C45: 0 | D45: 0
B46: 0 | C46: 0 | D46: 0
B47: 0 | C47: 0 | D47: 0
B48: 0 | C48: 0 | D48: 0
B49: 0 | C49: 0 | D49: 0
B50: 0 | C50: 0 | D50: 0
B51: 0 | C51: 0 | D51: 0
B52: 0 | C52: 0 | D52: 0
B53: 0 | C53: 0 | D53: 0
B54: 0 | C54: 0 | D54: 0
B55: 0 | C55: 0 | D55: 0
B56: 0 | C56: 0 | D56: 0
B57: 0 | C57: 0 | D57: 0
B58: 0 | C58: 0 | D58: 0
B59: 0 | C59: 0 | D59: 0
B60: 0 | C60: 0 | D60: 0
B61: 0 | C61: 0 | D61: 0
B62: 0 | C62: 0 | D62: 0
B63: 0 | C63: 0 | D63: 0
B64: 0 | C64: 0 | D64: 0
B65: 0 | C65: 0 | D65: 0
B66: 0 | C66: 0 | D66: 0
B67: 0 | C67: 0 | D67: 0
B68: 0 | C68: 0 | D68: 0
B69: 0 | C69: 0 | D69: 0
B70: 0 | C70: 0 | D70: 0
B71: 0 | C71: 0 | D71: 0
B72: 0 | C72: 0 | D72: 0
B73: 0 | C73: 0 | D73: 0
B74: 0 | C74: 0 | D74: =B74*C74 -> 0
B75: 0 | C75: 0 | D75: 0
B76: 0 | C76: 0 | D76: 0
B77: 0 | C77: 0 | D77: 0
B78: 0 | C78: 0 | D78: 0
B79: 0 | C79: 0 | D79: 0
B80: 0 | C80: 0 | D80: 0
B81: 0 | C81: 0 | D81: 0
B82: 0 | C82: 0 | D82: 0
B83: 0 | C83: 0 | D83: 0
B84: 0 | C84: 0 | D84: 0
B85: 0 | C85: 0 | D85: 0
B86: 0 | C86: 0 | D86: 0
B87: 0 | C87: 0 | D87: 0
B88: 0 | C88: 0 | D88: 0
B89: 0 | C89: 0 | D89: 0
B90: 0 | C90: 0 | D90: 0
B91: 0 | C91: 0 | D91: 0
B92: 0 | C92: 0 | D92: 0
B93: 0 | C93: 0 | D93: 0
B94: 0 | C94: 0 | D94: 0
B95: 0 | C95: 0 | D95: 0
B96: 0 | C96: 0 | D96: 0
B97: 0 | C97: 0 | D97: 0
B98: 0 | C98: 0 | D98: 0
B99: 0 | C99: 0 | D99: 0
B100: 0 | C100: 0 | D100: 0
B101: 0 | C101: 0 | D101: 0
B102: 0 | C102: 0 | D102: 0
B103: 0 | C103: 0 | D103: 0
B104: 0 | C104: 0 | D104: 0
B105: 0 | C105: 0 | D105: 0
B106: 0 | C106: 0 | D106: 0
B107: 0 | C107: 0 | D107: 0
B108: 0 | C108: 0 | D108: 0
B109: 0 | C109: 0 | D109: 0
B110: 0 | C110: 0 | D110: 0
B111: 0 | C111: 0 | D111: 0
B112: 0 | C112: 0 | D112: 0
B113: 0 | C113: 0 | D113: 0
B114: 0 | C114: 0 | D114: 0
B115: 0 | C115: 0 | D115: 0
B116: 0 | C116: 0 | D116: 0
B117: 0 | C117: 0 | D117: 0
B118: 0 | C118: 0 | D118: 0
B119: 0 | C119: 0 | D119: 0
B120: 0 | C120: 0 | D120: 0
B121: 0 | C121: 0 | D121: 0
B122: 0 | C122: 0 | D122: 0
B123: 0 | C123: 0 | D123: 0
B124: 0 | C124: 0 | D124: 0
B125: 0 | C125: 0 | D125: 0
B126: 0 | C126: 0 | D126: 0
B127: 0 | C127: 0 | D127: 0
B128: 0 | C128: 0 | D128: 0
B129: 0 | C129: 0 | D129: 0
B130: 0 | C130: 0 | D130: 0
B131: 0 | C131: 0 | D131: 0
B132: 0 | C132: 0 | D132: 0
B133: 0 | C133: 0 | D133: 0
B134: 0 | C134: 0 | D134: 0
B135: 0 | C135: 0 | D135: 0
B136: 0 | C136: 0 | D136: 0
B137: 0 | C137: 0 | D137: 0
B138: 0 | C138: 0 | D138: =B138*C138 -> 0
B139: 0 | C139: 0 | D139: 0
B140: 0 | C140: 0 | D140: 0
B141: 0 | C141: 0 | D141: 0
B142: 0 | C142: 0 | D142: 0
B143: 0 | C143: 0 | D143: 0
B144: 0 | C144: 0 | D144: 0
B145: 0 | C145: 0 | D145: 0
B146: 0 | C146: 0 | D146: 0
B147: 0 | C147: 0 | D147: 0
B148: 0 | C148: 0 | D148: 0
B149: 0 | C149: 0 | D149: 0
B150: 0 | C150: 0 | D150: 0
B151: 0 | C151: 0 | D151: 0
B152: 0 | C152: 0 | D152: 0
B153: 0 | C153: 0 | D153: 0
B154: 0 | C154: 0 | D154: 0
B155: 0 | C155: 0 | D155: 0
B156: 0 | C156: 0 | D156: 0
B157: 0 | C157: 0 | D157: 0
B158: 0 | C158: 0 | D158: 0
B159: 0 | C159: 0 | D159: 0
B160: 0 | C160: 0 | D160: 0
B161: 0 | C161: 0 | D161: 0
B162: 0 | C162: 0 | D162: 0
B163: 0 | C163: 0 | D163: 0
B164: 0 | C164: 0 | D164: 0
B165: 0 | C165: 0 | D165: 0
B166: 0 | C166: 0 | D166: 0
B167: 0 | C167: 0 | D167: 0
B168: 0 | C168: 0 | D168: 0
B169: 0 | C169: 0 | D169: 0
B170: 0 | C170: 0 | D170: 0
B171: 0 | C171: 0 | D171: 0
B172: 0 | C172: 0 | D172: 0
B173: 0 | C173: 0 | D173: 0
B174: 0 | C174: 0 | D174: 0
B175: 0 | C175: 0 | D175: 0
B176: 0 | C176: 0 | D176: 0
B177: 0 | C177: 0 | D177: 0
B178: 0 | C178: 0 | D178: 0
B179: 0 | C179: 0 | D179: 0
B180: 0 | C180: 0 | D180: 0
B181: 0 | C181: 0 | D181: 0
B182: 0 | C182: 0 | D182: 0
B183: 0 | C183: 0 | D183: 0
B184: 0 | C184: 0 | D184: 0
B185: 0 | C185: 0 | D185: 0
B186: 0 | C186: 0 | D186: 0
B187: 0 | C187: 0 | D187: 0
B188: 0 | C188: 0 | D188: 0
B189: 0 | C189: 0 | D189: 0
B190: 0 | C190: 0 | D190: 0
B191: 0 | C191: 0 | D191: 0
B192: 0 | C192: 0 | D192: 0
B193: 0 | C193: 0 | D193: 0
B194: 0 | C194: 0 | D194: 0
B195: 0 | C195: 0 | D195: 0
B196: 0 | C196: 0 | D196: 0
B197: 0 | C197: 0 | D197: 0
B198: 0 | C198: 0 | D198: 0
B199: 0 | C199: 0 | D199: 0
B200: 0 | C200: 0 | D200: 0
B201: 0 | C201: 0 | D201: 0
B202: 0 | C202: 0 | D202: =B202*C202 -> 0
B203: 0 | C203: 0 | D203: 0
... 2399 more rows

Sheet Step2
A2: Forensic Light Source Health risk composite index | M2: Laser
M3: Forensic light source
A4: Use this section to calculate the Health risk composite index you want to assess
C6: Health risk for :
D9: = | E9: =IFERROR((IF((M13=0),0,E11*F16*E31)),"Waiting for data") -> Waiting for data | F9: = | G9: Health risk composite index
A11: Danger index | D11: = | E11: =IFERROR((IF(D6=$M$3,(10^M13),IF(D6=$M$2,(10^(M13-1)),"Waiting for data"))),"Waiting for data") -> Waiting for data
A13: =IF(D6=$M$3,("Please enter the IEC/EN 62471 class number of your forensic light source"),IF(D6=$M$2,("Please enter the Laser class number of your laser source"),"Waiting for data")) -> Waiting for data | M13: Enter data
A14: Reference: | B14: =IF(D6=$M$3,(HYPERLINK("https://webstore.iec.ch/publication/7076")),IF(D6=$M$2,(HYPERLINK("http://www.lasersafetyfacts.com/laserclasses.html")),"Waiting for data")) -> Waiting for data
A16: Exposition index | E16: = | F16: =IFERROR((IF(H16>=0.9,1,H16)),"Waiting for data") -> Waiting for data | H16: =0.1*D20*D25 -> 
A18: Please enter the appropriate rank using the tables associated
A20: Level of frequency | C20: = | D20: Enter data
A21: Level 1 | B21: Less than once a week
A22: Level 2 | B22: Once or more times per week
A23: Level 3 | B23: Once or more times per day
A25: Operating Environment | C25: = | D25: Enter data
A26: Level 1 | B26: Controlled environment with restricted access
A27: Level 2 | B27: Controlled environment with unrestricted access
A28: Level 3 | B28: Uncontrolled environment
A31: Protection index | D31: = | E31: =IFERROR((10^-(I40-1)),"Waiting for data") -> Waiting for data
A33: Please enter the lowest protection level reached using the table below
A35: Skin Protection | C35: = | D35: Enter data
A36: Level 1 | B36: No gloves/lab coat/protection clothes
A37: Level 2 | B37: Unsuitable gloves/lab coat/protection clothes
A38: Level 3 | B38: Suitable gloves/lab coat/protection clothes
A40: Eyes Protection | C40: = | D40: Enter data | F40: Lowest protection level | H40: = | I40: =IF(D35<=D40,D35,D40) -> Enter data
A41: Level 1 | B41: No protection
A42: Level 2 | B42: Unsuitable goggle/glasses
A43: Level 3 | B43: Suitable goggle/glasses

Sheet Step3
A2: Time index | B2: = | C2: =IFERROR((0.5*D16)+(0.5*K16),"Waiting for data") -> Waiting for data
A4: Please select the appropriate value using the time scales below
A6: Preparation time | C6: = | E6: =VLOOKUP(D6,$E$10:$F$14,2,FALSE) ->  | H6: Processing Time | J6: = | L6: =VLOOKUP(K6,$E$10:$F$14,2,FALSE) -> 
A7: The time required for the preparation of different solutions for a method | H7: The time required during treatment, referring to the treatment itself but also reaction time, the drying time, the manipulation time and so on
A9: Time scale | B9: Definition | H9: Time scale | I9: Definition
A10: 5 | B10: Very fast | E10: =B10 -> Very fast | F10: 5 | H10: 5 | I10: Very fast
A11: 4 | B11: Fast | E11: =B11 -> Fast | F11: 4 | H11: 4 | I11: Fast
A12: 3 | B12: Not really time consuming | E12: Not really time consuming | F12: 3 | H12: 3 | I12: Not really time consuming
A13: 2 | B13: Time consuming | E13: Time consuming | F13: 2 | H13: 2 | I13: Time consuming
A14: 1 | B14: Very time consuming | E14: Very time consuming | F14: 1 | H14: 1 | I14: Very time consuming
A16: Preparation time index | C16: = | D16: =IFERROR((10^(E6-2)),"Waiting for data") -> Waiting for data | H16: Processing time index | J16: = | K16: =IFERROR((10^(L6-2)),"Waiting for data") -> Waiting for data

Sheet Step4
A2: Simplicity Index | C2: = | D2: =IFERROR(((0.5*D19)+(0.5*K19)),"Waiting for data") -> Waiting for data
A5: Please select the appropriate value using the simplicity scales below
A7: Preparation Simplicity | C7: = | F7: =IFERROR(VLOOKUP(D7,$E$11:$F$17,2,FALSE),"") ->  | H7: Processing Simplicity | J7: = | M7: =IFERROR(VLOOKUP(K7,$L$11:$M$17,2,FALSE),"") -> 
A8: The simplicity of the preparation of the forensic light source before power ON | H8: Ease of use of a method during treatment, referring to the treatment itself but also to the preparation of the surface, the manipulation and so on
A10: Simplicity scale | B10: Definition | H10: Simplicity scale | I10: Definition
A11: 3 | B11: Extremely easy and simple to prepare | E11: =B11 -> Extremely easy and simple to prepare | F11: =A11 -> 3 | H11: 3 | I11: Extremely easy and simple to use | L11: =I11 -> Extremely easy and simple to use | M11: =H11 -> 3
A12: 2 | B12: Very easy and simple to prepare | E12: =B12 -> Very easy and simple to prepare | F12: =A12 -> 2 | H12: 2 | I12: Very easy and simple to use | L12: =I12 -> Very easy and simple to use | M12: =H12 -> 2
A13: 1 | B13: Easy and simple to prepare | E13: Easy and simple to prepare | F13: 1 | H13: 1 | I13: Easy and simple to use | L13: Easy and simple to use | M13: 1
A14: 0 | B14: Not difficult to prepare | E14: Not difficult to prepare | F14: 0 | H14: 0 | I14: Not difficult to use | L14: Not difficult to use | M14: 0
A15: -1 | B15: Complex and difficult to prepare | E15: Complex and difficult to prepare | F15: -1 | H15: -1 | I15: Complex and difficult to use | L15: Complex and difficult to use | M15: -1
A16: -2 | B16: Very complex and difficult to prepare | E16: Very complex and difficult to prepare | F16: -2 | H16: -2 | I16: Very complex and difficult to use | L16: Very complex and difficult to use | M16: -2
A17: -3 | B17: Extremely complex and difficult to prepare | E17: Extremely complex and difficult to prepare | F17: -3 | H17: -3 | I17: Extremely complex and difficult to use | L17: Extremely complex and difficult to use | M17: -3
A19: Preparation simplicity index | C19: = | D19: =IFERROR((10^(F7)),"Waiting for data") -> Waiting for data | H19: Processing simplicity index | J19: = | K19: =IFERROR((10^(M7)),"Waiting for data") -> Waiting for data

Sheet ForATE Index
A2: ForATE index | C2: = | D2: =IFERROR((C6*B6)-(C7*B7)+(C7*1000)+(C8*B8)+(C9*B9),"Waiting for data") -> Waiting for data | K2: =(0.6634*D2)+0.005 -> 
A3: Forensic light source technology
B5: Individual indexes values | C5: Individual indexes weight
A6: Efficiency | B6: =Step1!D2 -> Waiting for data | C6: 0.6634
A7: Health Risk | B7: =Step2!E9 -> Waiting for data | C7: 0.2476
A8: Time | B8: =Step3!C2 -> Waiting for data | C8: 0.0458
A9: Simplicity | B9: =Step4!D2 -> Waiting for data | C9: 0.0432

Sheet Print
C4: ForATE index
C5: Forensic light source technology
D7: ='ForATE Index'!D2:J2 -> Waiting for data
D9: Individual indexes values | E9: Individual indexes weight
C10: Efficiency | D10: ='ForATE Index'!B6 -> Waiting for data | E10: 0.6634
C11: Health Risk | D11: ='ForATE Index'!B7 -> Waiting for data | E11: 0.2476
C12: Time | D12: ='ForATE Index'!B8 -> Waiting for data | E12: 0.0458
C13: Simplicity | D13: ='ForATE Index'!B9 -> Waiting for data | E13: 0.0432

Sheet Liste (hidden)
C1: y | D1: x | J1: EUH014 | M1: ForATE
C2: 1 | D2: 0 | J2: EUH019 | L2: 0 | M2: =0.005+0 -> 0.005 | N2: 0
C3: =LOG(D3) -> 1.698970004 | D3: 50 | J3: EUH044 | L3: 50 | M3: =33.175+0 -> 33.175 | N3: -110
C4: 2 | D4: 100 | J4: EUH066 | L4: 100 | M4: =66.345+0 -> 66.345 | N4: -20
C5: 2.176091259 | D5: 150 | J5: H204 | L5: 150 | M5: =99.515+0 -> 99.515 | N5: 0.001
C6: 2.301029996 | D6: 200 | J6: H205 | L6: 200 | M6: =132.685+0 -> 132.685 | N6: 0.002
C7: 2.397940009 | D7: 250 | J7: H226 | L7: 250 | M7: =165.855+0 -> 165.855 | N7: 0.004
C8: 2.477121255 | D8: 300 | J8: H228 | L8: 300 | M8: =199.025+0 -> 199.025 | N8: 1
C9: 2.544068044 | D9: 350 | J9: H252 | L9: 350 | M9: =232.195+0 -> 232.195 | N9: 8
C10: 2.602059991 | D10: 400 | J10: H270 | L10: 400 | M10: =265.365+0 -> 265.365 | N10: 20
C11: 2.653212514 | D11: 450 | J11: H272 | L11: 450 | M11: =298.535+0 -> 298.535 | N11: 50
C12: 2.698970004 | D12: 500 | J12: H302 | L12: 500 | M12: =331.705+0 -> 331.705 | N12: 100
C13: 2.740362689 | D13: 550 | J13: H304 | L13: 550 | M13: =364.875+0 -> 364.875 | N13: 300
C14: 2.77815125 | D14: 600 | J14: H312 | L14: 600 | M14: =398.045+0 -> 398.045 | N14: 400
C15: 2.812913357 | D15: 650 | J15: H315 | L15: 650 | M15: =431.215+0 -> 431.215 | N15: 600
C16: 2.84509804 | D16: 700 | J16: H319 | L16: 700 | M16: =464.385+0 -> 464.385 | N16: 752.4
C17: 2.875061263 | D17: 750 | J17: H332 | L17: 750 | M17: =497.555+0 -> 497.555
C18: 2.903089987 | D18: 800 | J18: H336 | L18: 800 | M18: =530.725+0 -> 530.725
C19: 2.929418926 | D19: 850 | J19: EUH006 | L19: 850 | M19: =563.895+0 -> 563.895
C20: 2.954242509 | D20: 900 | J20: EUH018 | L20: 900 | M20: =597.065+0 -> 597.065
C21: 2.977723605 | D21: 950 | J21: EUH029 | L21: 950 | M21: =630.235+0 -> 630.235
C22: 3 | D22: 1000 | J22: EUH031 | L22: 1000 | M22: =663.405+0 -> 663.405
J23: EUH071 | L23: 1050 | M23: =M22+33.17 -> 696.575
J24: H201 | L24: 1100 | M24: =M23+33.17 -> 729.745
J25: H203 | L25: 1150 | M25: =M24+33.17 -> 762.915
J26: H225 | L26: 1200 | M26: =M25+33.17 -> 796.085
J27: H240 | L27: 1250 | M27: 829.255
J28: H241 | L28: 1300 | M28: 862.425
J29: H251 | L29: 1350 | M29: 895.595
J30: H261 | L30: 1400 | M30: 928.765
J31: H271 | L31: 1450 | M31: 961.935
J32: H301 | L32: 1500 | M32: 995.105
J33: H311
J34: H317
J35: H331
J36: H335
J37: H341
J38: H351
J39: H361
J40: H361d
J41: H361f
J42: H361fd
J43: H362
J44: H371
J45: EUH001
J46: EUH032
J47: EUH070
J48: H200
J49: H202
J50: H220
J51: H221
J52: H222
J53: H223
J54: H224
J55: H242
J56: H250
J57: H260
J58: H300
J59: H310
J60: H314
J61: H318
J62: H330
J63: H334
J64: H340
J65: H350
J66: H350i
J67: H360
J68: H360D
J69: H360Df
J70: H360F
J71: H360Fd
J72: H360FD
J73: H370
J74: H372
J75: H373
